bitfinex-derivatives/quotes_BTCF0:USTF0_20250121
["timestamp","ask_amount","ask_price","bid_price","bid_amount"]
[1737472499448,0.36094548,103120.0,103110.0,0.048537]
[1737472500142,0.00014548,103120.0,103110.0,0.048537]
[1737472500343,0.13800293,103150.0,103120.0,0.048532]
[1737472500648,0.13800293,103130.0,103120.0,0.25686691]
[1737472500847,0.13800293,103130.0,103120.0,0.94206691]
[1737472501043,0.16442664,103140.0,103130.0,0.048528]
[1737472501244,0.00026327,103180.0,103160.0,0.048514]
[1737472501443,0.00026327,103180.0,103170.0,0.048509]
[1737472501644,0.00040875,103180.0,103170.0,0.048509]
[1737472502062,0.00040875,103180.0,103170.0,1.548509]
[1737472502347,0.103,103200.0,103170.0,2.233709]
[1737472502545,0.00116,103220.0,103210.0,0.048487]
[1737472502745,0.55598739,103230.0,103210.0,0.048487]
[1737472503043,0.55598739,103230.0,103200.0,0.048491]
[1737472503044,0.3608,103220.0,103200.0,0.048491]
[1737472503448,0.409286,103220.0,103200.0,0.048491]
[1737472503652,0.3608,103210.0,103200.0,0.00014548]
[1737472503950,0.61776639,103220.0,103200.0,0.04864048]
[1737472504146,0.3608,103210.0,103200.0,0.04864048]
[1737472504347,0.36094548,103220.0,103200.0,0.00014548]
[1737472504547,0.36094548,103220.0,103210.0,0.04849]
[1737472504747,0.44403732,103220.0,103210.0,0.04849]
[1737472505151,0.44603732,103220.0,103210.0,0.04849]
[1737472505450,0.44603732,103220.0,103200.0,0.04863948]
[1737472505844,0.3608,103210.0,103200.0,0.04863948]
[1737472506038,0.44603732,103220.0,103210.0,0.04849]
[1737472506350,0.09023732,103220.0,103210.0,0.04849]
[1737472506539,0.45103732,103220.0,103210.0,0.04849]
[1737472506947,0.08823732,103220.0,103210.0,0.40929]
[1737472507141,0.08323732,103220.0,103210.0,0.40929]
[1737472507449,0.11378912,103230.0,103220.0,0.048486]
[1737472507643,0.3638,103260.0,103240.0,0.048475]
[1737472507845,0.3638,103260.0,103220.0,0.61762091]
[1737472507846,0.3608,103250.0,103210.0,0.92482491]
[1737472508146,0.3608,103230.0,103220.0,0.048485]
[1737472508347,0.56913491,103230.0,103200.0,0.2951]
[1737472508647,0.409286,103220.0,103210.0,0.00014548]
[1737472508844,0.7216,103220.0,103210.0,0.00014548]
[1737472509151,0.770087,103220.0,103190.0,0.048499]
[1737472509353,0.3608,103210.0,103200.0,0.048495]
[1737472509559,0.005,103220.0,103210.0,0.04849]
[1737472509750,0.3658,103220.0,103200.0,0.048494]
[1737472509949,0.3608,103220.0,103210.0,0.04849]
[1737472510154,0.3658,103220.0,103210.0,0.04849]
[1737472510352,0.36594548,103220.0,103210.0,0.04849]
[1737472510758,0.00514548,103220.0,103210.0,0.04849]
[1737472511057,0.00514548,103220.0,103210.0,0.61762491]
[1737472511242,0.3608,103250.0,103240.0,0.048476]
[1737472511443,0.3608,103250.0,103230.0,0.04848]
[1737472512057,1.09609012,103260.0,103230.0,0.04848]
[1737472512348,0.41483012,103260.0,103230.0,2.11761491]
[1737472512549,0.4149756,103260.0,103250.0,0.048471]
[1737472512754,0.7757756,103260.0,103240.0,0.048475]
[1737472512956,0.4149756,103260.0,103250.0,0.048471]
[1737472513342,0.00314548,103260.0,103250.0,0.048471]
[1737472513551,0.00314548,103260.0,103250.0,0.345871]
[1737472513854,0.00314548,103260.0,103250.0,0.55420591]
[1737472514071,0.19218739,103270.0,103260.0,0.048467]
[1737472514747,0.19218739,103270.0,103260.0,1.548467]
[1737472514748,0.14218739,103270.0,103260.0,1.548467]
[1737472515453,0.14418739,103270.0,103260.0,1.548467]
[1737472515858,0.50498739,103270.0,103260.0,1.548467]
[1737472516546,0.14418739,103270.0,103260.0,1.75680191]
[1737472516746,0.09418739,103270.0,103260.0,1.75680191]
[1737472516953,0.50245239,103270.0,103250.0,0.29754548]
[1737472517252,0.45398739,103270.0,103260.0,0.048467]
[1737472517454,0.81478739,103270.0,103250.0,0.04861548]
[1737472517664,0.3608,103260.0,103250.0,0.04861548]
[1737472517851,0.410263,103270.0,103250.0,0.04861548]
[1737472518153,0.001,103270.0,103250.0,0.409268]
[1737472518354,0.001,103270.0,103260.0,0.25679791]
[1737472518661,0.001,103270.0,103260.0,0.048463]
[1737472518852,0.3618,103270.0,103250.0,0.048469]
[1737472519053,0.3608,103260.0,103250.0,0.048469]
[1737472519249,0.3608,103260.0,103250.0,0.04861448]
[1737472519459,0.409267,103260.0,103250.0,0.00014548]
[1737472519748,0.709267,103260.0,103250.0,0.00014548]
[1737472519958,0.048488,103220.0,103200.0,0.00157148]
[1737472520146,0.97842491,103210.0,103180.0,0.373404]
[1737472520351,0.7216,103190.0,103180.0,0.003]
[1737472521054,0.7216,103190.0,103140.0,0.048523]
[1737472521055,0.048511,103170.0,103140.0,0.048523]
[1737472521259,0.61765391,103150.0,103140.0,0.34610621]
[1737472521763,0.56913491,103150.0,103140.0,0.34610621]
[1737472521959,0.61765391,103150.0,103140.0,0.34610621]
[1737472522263,0.3608,103140.0,103120.0,0.40245288]
[1737472522457,0.61766291,103130.0,103120.0,0.40245288]
[1737472522957,0.61776047,103130.0,103120.0,0.40245288]
[1737472523162,0.91766291,103130.0,103120.0,0.40245288]
[1737472523364,0.048533,103120.0,103110.0,0.45651758]
[1737472523663,0.409333,103120.0,103110.0,0.45666306]
[1737472523866,0.6608,103120.0,103100.0,1.21364888]
[1737472524059,0.56913491,103110.0,103100.0,1.21364888]
[1737472524261,0.3608,103110.0,103100.0,1.16522273]
[1737472524467,0.56913491,103110.0,103100.0,1.16522273]
[1737472524969,0.3608,103110.0,103100.0,1.16522273]
[1737472525472,0.3608,103110.0,103100.0,2.71376473]
[1737472525473,8.783e-05,103110.0,103100.0,2.71376473]
[1737472525669,0.3608,103140.0,103100.0,3.23435764]
[1737472525868,0.61764891,103160.0,103130.0,0.048527]
[1737472526071,0.56913491,103140.0,103110.0,0.368835]
[1737472526368,0.56913491,103140.0,103120.0,0.048532]
[1737472527272,0.00014548,103140.0,103130.0,0.3608]
[1737472527471,0.00014548,103140.0,103130.0,0.409328]
[1737472527971,0.36094548,103140.0,103120.0,0.04867748]
[1737472528273,0.3608,103130.0,103120.0,0.00014548]
[1737472529061,0.409328,103130.0,103120.0,0.00014548]
[1737472529771,0.412328,103130.0,103120.0,0.00014548]
[1737472529962,0.048537,103110.0,103080.0,0.01416885]
[1737472530163,0.048537,103110.0,103070.0,0.32234369]
[1737472530164,0.3608,103100.0,103070.0,0.32234369]
[1737472530375,0.3608,103090.0,103070.0,0.32234369]
[1737472530568,0.56913491,103090.0,103070.0,0.32234369]
[1737472530970,0.3608,103090.0,103080.0,0.048551]
[1737472531176,0.3608,103090.0,103070.0,0.32234269]
[1737472531473,0.3638,103130.0,103110.0,0.048533]
[1737472531661,0.3638,103130.0,103100.0,0.409341]
[1737472531865,0.3638,103130.0,103110.0,0.048537]
[1737472532065,0.3638,103130.0,103120.0,1.5]
[1737472532369,0.3608,103140.0,103120.0,1.5]
[1737472532675,0.3608,103160.0,103140.0,0.048523]
[1737472533065,0.36094548,103160.0,103120.0,1.8608]
[1737472533266,0.3608,103150.0,103120.0,1.5]
[1737472533566,0.3608,103150.0,103140.0,0.00014548]
[1737472533976,0.21148039,103160.0,103140.0,0.04866848]
[1737472534162,0.36394548,103160.0,103130.0,0.048526]
[1737472534362,0.36394548,103160.0,103140.0,0.048522]
[1737472534571,0.00314548,103160.0,103140.0,0.048522]
[1737472534876,0.002,103150.0,103140.0,0.048522]
[1737472535080,0.002,103150.0,103140.0,1.548522]
[1737472535372,0.3638,103150.0,103130.0,0.000145]
[1737472535774,0.3638,103150.0,103140.0,0.048523]
[1737472535968,0.00214548,103160.0,103130.0,0.3608]
[1737472536165,0.002,103150.0,103130.0,0.3608]
[1737472536363,0.002,103150.0,103130.0,0.31237385]
[1737472536566,0.21048039,103160.0,103140.0,0.04852]
[1737472536769,0.3628,103150.0,103140.0,0.04852]
[1737472536979,0.3628,103150.0,103140.0,1.54852]
[1737472537278,0.004,103150.0,103140.0,1.54852]
[1737472537871,0.002,103150.0,103140.0,1.5]
[1737472538070,0.004,103150.0,103140.0,1.548523]
[1737472538265,0.00014548,103160.0,103150.0,0.048519]
[1737472538469,0.00014548,103160.0,103150.0,0.409319]
[1737472538776,0.003,103170.0,103160.0,0.048514]
[1737472538968,0.3608,103190.0,103180.0,0.048504]
[1737472539364,0.24008428,103200.0,103180.0,0.409304]
[1737472539585,0.24008428,103200.0,103190.0,0.0485]
[1737472539971,0.24022976,103200.0,103190.0,0.0485]
[1737472540670,0.60102976,103200.0,103180.0,0.04864948]
[1737472540973,0.56913491,103190.0,103180.0,0.00014548]
[1737472541374,0.61763491,103190.0,103180.0,0.00014548]
[1737472541577,0.56913491,103190.0,103180.0,0.00014548]
[1737472541772,0.56913491,103190.0,103180.0,0.04864948]
[1737472541975,0.56913491,103190.0,103180.0,0.00014548]
[1737472542180,0.61863491,103190.0,103160.0,0.048513]
[1737472542377,0.3608,103180.0,103150.0,2.230815]
[1737472542582,0.57013491,103190.0,103170.0,0.048506]
[1737472542786,0.001,103190.0,103180.0,0.048504]
[1737472543277,0.103,103200.0,103170.0,0.048506]
[1737472543477,0.3608,103180.0,103170.0,0.359305]
[1737472543679,0.3608,103180.0,103170.0,0.048505]
[1737472543976,0.3608,103180.0,103160.0,0.048512]
[1737472544284,0.3608,103170.0,103160.0,0.048514]
[1737472544675,0.36094548,103180.0,103160.0,0.048514]
[1737472545276,0.3608,103170.0,103160.0,0.054514]
[1737472545485,0.61764491,103170.0,103150.0,0.32759185]
[1737472545781,0.3608,103160.0,103150.0,0.27907385]
[1737472545982,0.3608,103160.0,103140.0,1.847021]
[1737472546181,0.3608,103160.0,103140.0,0.347021]
[1737472546686,0.3608,103150.0,103140.0,1.847021]
[1737472547091,0.20848039,103180.0,103150.0,0.048519]
[1737472547092,0.3608,103180.0,103150.0,0.048519]
[1737472547278,0.3608,103180.0,103160.0,0.048512]
[1737472547478,0.3608,103180.0,103170.0,0.048509]
[1737472547885,0.36094548,103180.0,103170.0,0.048509]
[1737472548483,0.36094548,103180.0,103160.0,0.005]
[1737472548787,0.36094548,103180.0,103170.0,0.050509]
[1737472548987,0.00014548,103180.0,103170.0,0.050509]
[1737472549183,0.4638,103200.0,103170.0,0.25884391]
[1737472549385,0.13708428,103210.0,103200.0,0.048495]
[1737472549586,0.003,103230.0,103200.0,0.409295]
[1737472549788,0.3638,103260.0,103240.0,0.048476]
[1737472550082,0.3638,103260.0,103240.0,0.409276]
[1737472550285,0.3638,103260.0,103240.0,0.3608]
[1737472550478,0.36394548,103260.0,103240.0,0.40941848]
[1737472550677,0.00314548,103260.0,103250.0,0.048472]
[1737472550880,0.00314548,103260.0,103250.0,0.409272]
[1737472551779,0.00414548,103260.0,103250.0,0.048472]
[1737472552285,0.36794548,103260.0,103250.0,1.548472]
[1737472552485,0.36794548,103260.0,103250.0,1.5]
[1737472552985,0.41641448,103260.0,103240.0,0.00014548]
[1737472553189,0.3608,103250.0,103240.0,0.00014548]
[1737472553495,0.36894548,103260.0,103240.0,0.04862148]
[1737472553978,0.36694548,103260.0,103240.0,0.04862148]
[1737472554180,0.36894548,103260.0,103240.0,0.04862148]
[1737472554386,0.00814548,103260.0,103240.0,0.00014548]
[1737472554581,0.36894548,103260.0,103220.0,0.4107381]
[1737472554890,0.3608,103250.0,103220.0,0.4107381]
[1737472555183,0.3608,103250.0,103230.0,0.048481]
[1737472555385,0.00814548,103260.0,103240.0,0.048475]
[1737472555592,0.00814548,103260.0,103230.0,0.048481]
[1737472555593,0.00814548,103260.0,103250.0,0.048472]
[1737472555781,0.00514548,103260.0,103250.0,0.048472]
[1737472555979,0.00814548,103260.0,103240.0,0.048475]
[1737472556185,0.36694548,103260.0,103240.0,0.048475]
[1737472556394,0.36694548,103260.0,103230.0,0.3608]
[1737472556395,0.41341448,103260.0,103230.0,0.40928]
[1737472556686,0.3608,103250.0,103240.0,0.048476]
[1737472557393,0.3608,103250.0,103230.0,0.3608]
[1737472557394,0.00714548,103260.0,103230.0,0.56913491]
[1737472557583,0.00614548,103260.0,103230.0,0.56913491]
[1737472557890,0.00614548,103260.0,103250.0,0.048472]
[1737472557891,0.00714548,103260.0,103250.0,0.048472]
[1737472559288,0.00414548,103260.0,103250.0,0.048472]
[1737472559506,0.00514548,103260.0,103250.0,0.048472]
[1737472560578,0.00514548,103260.0,103240.0,0.31040276]
[1737472560884,0.003,103290.0,103280.0,0.048457]
[1737472561092,0.05883505,103300.0,103290.0,0.048453]
[1737472561387,0.03693852,103300.0,103290.0,0.409253]
[1737472561587,0.19491799,103320.0,103310.0,0.048443]
[1737472561791,0.19491799,103320.0,103310.0,0.61757791]
[1737472562188,0.21964273,103320.0,103310.0,2.11757791]
[1737472562691,0.00014548,103330.0,103310.0,2.11757791]
[1737472562997,0.00014548,103330.0,103310.0,1.5]
[1737472563186,0.003,103320.0,103310.0,1.548441]
[1737472563683,0.003,103320.0,103310.0,0.048441]
[1737472564200,0.003,103320.0,103310.0,0.409241]
[1737472564498,0.00114548,103330.0,103320.0,0.048439]
[1737472564689,0.00114548,103330.0,103320.0,2.11757391]
[1737472565091,0.003,103380.0,103330.0,0.3608]
[1737472565287,0.1,103400.0,103370.0,1.02676491]
[1737472565590,0.003,103410.0,103400.0,0.048401]
[1737472565786,0.003,103410.0,103400.0,0.409201]
[1737472566191,0.25123951,103410.0,103400.0,0.409201]
[1737472566494,0.25123951,103410.0,103400.0,0.048401]
[1737472566710,0.25223951,103410.0,103390.0,0.56925524]
[1737472566887,0.25223951,103410.0,103400.0,0.048401]
[1737472567788,0.61303951,103410.0,103390.0,0.00014548]
[1737472567989,0.30063751,103410.0,103390.0,0.04855048]
[1737472568294,0.3608,103400.0,103390.0,0.04855048]
[1737472568594,0.409201,103400.0,103370.0,0.048414]
[1737472568794,0.409201,103400.0,103380.0,0.04841]
[1737472569098,0.66143651,103410.0,103380.0,0.61754491]
[1737472569396,0.409202,103400.0,103370.0,0.61754891]
[1737472569797,0.3608,103380.0,103360.0,0.048419]
[1737472569999,0.3608,103380.0,103370.0,0.00014548]
[1737472570193,0.409211,103380.0,103370.0,0.00014548]
[1737472570393,0.66494548,103400.0,103370.0,0.00014548]
[1737472570585,0.66594548,103400.0,103380.0,0.048409]
[1737472570788,0.00114548,103400.0,103390.0,0.048406]
[1737472570983,0.00214548,103400.0,103390.0,0.409206]
[1737472571184,0.00214548,103400.0,103390.0,0.61754091]
[1737472571701,0.00314548,103400.0,103390.0,0.25674091]
[1737472572199,0.00014548,103400.0,103390.0,1.75674091]
[1737472572400,0.00114548,103400.0,103390.0,0.048406]
[1737472572900,0.00214548,103400.0,103390.0,1.548406]
[1737472573486,0.00214548,103400.0,103390.0,0.048406]
[1737472573686,0.05054648,103400.0,103380.0,0.25674191]
[1737472573991,0.3608,103390.0,103370.0,0.04855948]
[1737472574296,0.048411,103380.0,103370.0,0.00014548]
[1737472574490,0.409211,103380.0,103370.0,0.00014548]
[1737472574697,0.56913491,103380.0,103340.0,0.00823702]
[1737472574998,0.3608,103380.0,103360.0,0.048419]
[1737472575198,0.3608,103380.0,103360.0,0.25675391]
[1737472575494,0.409211,103380.0,103350.0,0.048424]
[1737472575700,0.048411,103380.0,103350.0,0.048424]
[1737472575887,0.3608,103360.0,103340.0,1.54987723]
[1737472576089,0.56913491,103370.0,103350.0,0.048425]
[1737472576288,0.36294548,103380.0,103340.0,1.91067723]
[1737472576493,0.00214548,103380.0,103340.0,1.91067723]
[1737472576697,0.00314548,103380.0,103360.0,0.048419]
[1737472577113,0.00314548,103380.0,103370.0,0.048415]
[1737472577697,0.36394548,103380.0,103360.0,0.048419]
[1737472578004,0.3608,103370.0,103360.0,0.048419]
[1737472578207,0.3608,103370.0,103340.0,0.36224923]
[1737472578399,0.3608,103370.0,103350.0,0.048421]
[1737472578594,0.00214548,103380.0,103370.0,0.048415]
[1737472578795,0.00214548,103380.0,103350.0,0.40920985]
[1737472579095,0.00114548,103380.0,103370.0,0.048415]
[1737472579301,0.00014548,103380.0,103370.0,0.048415]
[1737472579703,0.00014548,103380.0,103370.0,0.409215]
[1737472580008,0.00214548,103380.0,103370.0,0.61754991]
[1737472580300,0.00051501,103390.0,103380.0,0.048411]
[1737472580602,0.00051501,103390.0,103380.0,0.409211]
[1737472581888,0.00051501,103390.0,103380.0,0.36078485]
[1737472582088,0.00151501,103390.0,103380.0,1.90919585]
[1737472583200,0.00151501,103390.0,103380.0,1.548411]
[1737472583699,0.04992101,103390.0,103380.0,1.5]
[1737472583896,0.00151501,103390.0,103370.0,0.40935748]
[1737472584102,0.00151501,103390.0,103380.0,0.048411]
[1737472584298,0.36231501,103390.0,103370.0,0.04855948]
[1737472584506,0.04992101,103390.0,103370.0,1.90935948]
[1737472584707,0.00151501,103390.0,103370.0,1.95777148]
[1737472584907,0.00151501,103390.0,103370.0,1.90934233]
[1737472585302,0.36231501,103390.0,103380.0,0.048411]
[1737472585698,0.36131501,103390.0,103370.0,1.90934333]
[1737472585904,0.04892101,103390.0,103370.0,1.54854333]
[1737472586103,0.00051501,103390.0,103370.0,1.54854333]
[1737472586304,0.00051501,103390.0,103380.0,0.048411]
[1737472586707,0.00051501,103390.0,103380.0,0.61754591]
[1737472586909,0.00014548,103400.0,103390.0,0.048406]
[1737472587207,0.003,103410.0,103390.0,0.409206]
[1737472587411,0.003,103410.0,103400.0,0.61753591]
[1737472587812,0.003,103410.0,103400.0,0.409201]
[1737472588013,0.003,103410.0,103400.0,0.36077485]
[1737472589408,0.004,103410.0,103400.0,0.36077485]
[1737472590302,0.413197,103410.0,103390.0,1.90935048]
[1737472590508,0.413197,103410.0,103380.0,0.048409]
[1737472590509,0.3608,103400.0,103380.0,0.048409]
[1737472590707,0.61753791,103400.0,103380.0,0.048409]
[1737472590911,0.3608,103390.0,103370.0,1.50145092]
[1737472591208,0.61754791,103380.0,103360.0,0.048419]
[1737472591401,0.3608,103390.0,103360.0,0.048417]
[1737472591715,0.409206,103390.0,103360.0,0.048419]
[1737472591905,0.40935148,103390.0,103360.0,0.04854933]
[1737472592120,0.3608,103370.0,103360.0,1.50013033]
[1737472592405,0.409215,103370.0,103360.0,0.00013033]
[1737472592597,0.3608,103370.0,103360.0,0.00013033]
[1737472593410,0.409215,103370.0,103360.0,0.00013033]
[1737472593722,0.3608,103370.0,103360.0,0.00013033]
[1737472594010,0.3608,103370.0,103340.0,0.00144923]
[1737472594225,0.3608,103350.0,103340.0,0.00144923]
[1737472594714,0.47159557,103370.0,103340.0,0.00144923]
[1737472594908,0.47159557,103370.0,103350.0,0.048424]
[1737472595109,0.47159557,103370.0,103350.0,1.548424]
[1737472595313,0.3608,103360.0,103350.0,1.548424]
[1737472595819,0.47074105,103370.0,103350.0,1.548424]
[1737472596109,0.10994105,103370.0,103360.0,0.04842]
[1737472596617,0.47074105,103370.0,103350.0,1.548424]
[1737472596812,0.11094105,103370.0,103350.0,1.5]
[1737472597006,0.11094105,103370.0,103360.0,0.04842]
[1737472597514,0.47174105,103370.0,103350.0,1.54841785]
[1737472597810,0.11094105,103370.0,103350.0,1.54841785]
[1737472598211,0.11094105,103370.0,103360.0,0.04842]
[1737472598412,0.24884833,103370.0,103360.0,0.04842]
[1737472598620,0.60964833,103370.0,103350.0,1.54841785]
[1737472599111,0.3608,103360.0,103350.0,1.54841785]
[1737472599908,0.3608,103360.0,103350.0,1.49999385]
[1737472600214,0.3608,103360.0,103340.0,0.41067423]
[1737472600607,0.3608,103360.0,103340.0,0.04987423]
[1737472601114,0.3608,103360.0,103340.0,1.91067423]
[1737472601314,0.3608,103360.0,103340.0,1.54987423]
[1737472602310,0.3618,103360.0,103340.0,1.54987423]
[1737472602516,0.3618,103360.0,103350.0,0.048425]
[1737472602718,0.3618,103360.0,103340.0,1.50144923]
[1737472603024,0.3608,103350.0,103340.0,1.54987823]
[1737472603214,0.3608,103350.0,103320.0,0.6329]
[1737472603412,0.61855491,103360.0,103310.0,0.00011505]
[1737472603413,0.3608,103330.0,103310.0,0.00011505]
[1737472603713,0.3608,103330.0,103300.0,0.103]
[1737472603714,0.048443,103310.0,103300.0,0.103]
[1737472603914,0.409243,103310.0,103300.0,0.103]
[1737472604417,0.048448,103300.0,103290.0,0.51617998]
[1737472604626,0.048448,103300.0,103270.0,0.73629517]
[1737472604627,0.048457,103280.0,103270.0,0.73629517]
[1737472604809,0.97839191,103280.0,103270.0,0.73629517]
[1737472605011,0.97839191,103280.0,103260.0,1.35188478]
[1737472605012,0.409262,103270.0,103260.0,1.13057624]
[1737472605317,0.21119895,103260.0,103250.0,0.4264618]
[1737472605619,0.048472,103250.0,103240.0,0.4426915]
[1737472605816,0.409272,103250.0,103240.0,0.34989214]
[1737472606021,0.81421486,103250.0,103240.0,0.34979214]
[1737472606317,0.81421486,103250.0,103240.0,0.25313596]
[1737472606519,0.51421486,103250.0,103240.0,0.25313596]
[1737472606725,0.409272,103250.0,103240.0,0.25313596]
[1737472607016,0.00014548,103260.0,103240.0,0.25313596]
[1737472607222,0.00014548,103260.0,103240.0,0.58265211]
[1737472607423,0.00014548,103260.0,103240.0,0.17337611]
[1737472607622,0.00014548,103260.0,103240.0,0.58264911]
[1737472607822,0.00014548,103260.0,103240.0,0.53417611]
[1737472608024,0.00014548,103260.0,103250.0,0.409272]
[1737472608426,0.56913491,103280.0,103250.0,0.048472]
[1737472608629,0.20833491,103260.0,103240.0,0.17337611]
[1737472608817,0.25680491,103260.0,103240.0,0.17337611]
[1737472609127,0.25880491,103260.0,103240.0,0.17337611]
[1737472609425,0.001,103250.0,103240.0,0.12499213]
[1737472609921,0.001,103250.0,103240.0,0.12513761]
[1737472610120,0.00314548,103260.0,103240.0,0.12513761]
[1737472610321,0.05161248,103260.0,103240.0,0.12513761]
[1737472610518,0.48966451,103250.0,103240.0,0.00014548]
[1737472611422,0.48966451,103250.0,103240.0,0.36094548]
[1737472611722,0.48966451,103250.0,103240.0,0.40942148]
[1737472611923,0.00114548,103260.0,103250.0,0.048472]
[1737472612117,0.00114548,103260.0,103250.0,1.8608]
[1737472612426,0.61774739,103260.0,103240.0,0.36094548]
[1737472612621,0.61774739,103260.0,103240.0,0.00014548]
[1737472612828,0.56928039,103260.0,103240.0,0.00014548]
[1737472613118,0.048472,103250.0,103240.0,0.00014548]
[1737472613321,0.409272,103250.0,103240.0,0.00014548]
[1737472613526,0.048472,103250.0,103240.0,0.00014548]
[1737472613824,0.3628,103250.0,103240.0,0.00014548]
[1737472614222,0.002,103250.0,103230.0,0.36308]
[1737472614415,0.002,103250.0,103240.0,0.409276]
[1737472614622,0.19399857,103260.0,103250.0,0.048472]
[1737472614821,0.22040353,103270.0,103250.0,0.61760691]
[1737472615130,0.22040353,103270.0,103260.0,0.409267]
[1737472615334,0.22040353,103270.0,103260.0,0.3608]
[1737472615629,0.22040353,103270.0,103260.0,0.20552301]
[1737472616024,0.22040353,103270.0,103260.0,0.15705601]
[1737472616425,0.22040353,103270.0,103260.0,0.20552301]
[1737472616626,0.22140353,103270.0,103260.0,0.20552301]
[1737472617021,0.22140353,103270.0,103250.0,0.34021548]
[1737472617218,0.13861315,103270.0,103250.0,0.65254548]
[1737472617426,0.13861315,103270.0,103250.0,0.04927302]
[1737472617724,0.54987715,103270.0,103250.0,0.00014548]
[1737472618319,0.409269,103260.0,103230.0,0.61409455]
[1737472618521,0.54987615,103270.0,103240.0,0.409276]
[1737472618720,0.61151305,103270.0,103240.0,0.3608]
[1737472618924,0.25071305,103270.0,103260.0,0.048467]
[1737472619132,0.16513578,103280.0,103260.0,0.048467]
[1737472619321,0.16513578,103280.0,103270.0,1.75679691]
[1737472619521,0.22040353,103290.0,103280.0,0.048457]
[1737472619718,0.003,103320.0,103300.0,0.048448]
[1737472619922,0.003,103350.0,103310.0,0.3608]
[1737472620130,0.3608,103340.0,103320.0,0.048437]
[1737472620334,0.3608,103340.0,103320.0,0.409235]
[1737472620518,0.36094548,103340.0,103330.0,0.048434]
[1737472621021,0.36094548,103340.0,103310.0,0.409243]
[1737472621221,0.36094548,103340.0,103320.0,0.048437]
[1737472621430,0.36094548,103340.0,103320.0,0.048435]
[1737472621635,0.3608,103330.0,103320.0,0.048437]
[1737472622027,0.36094548,103340.0,103320.0,0.048435]
[1737472622233,0.36194548,103340.0,103330.0,0.048434]
[1737472622435,0.00114548,103340.0,103330.0,0.048434]
[1737472623136,0.44669555,103370.0,103360.0,0.04842]
[1737472623438,0.44669555,103370.0,103360.0,0.25675491]
[1737472623637,0.3638,103380.0,103360.0,0.3608]
[1737472623835,0.3638,103380.0,103370.0,0.048415]
[1737472624535,0.3638,103380.0,103360.0,0.36094548]
[1737472624738,0.3638,103380.0,103370.0,0.048415]
[1737472625036,0.003,103380.0,103370.0,0.048415]
[1737472625223,0.00014548,103390.0,103370.0,0.25674991]
[1737472625427,0.00014548,103390.0,103380.0,0.409211]
[1737472625729,0.00014548,103390.0,103380.0,0.048411]
[1737472626638,0.00114548,103390.0,103380.0,0.409211]
[1737472626836,0.00114548,103390.0,103380.0,0.048411]
[1737472627531,0.00114548,103390.0,103380.0,0.3608]
[1737472627737,0.00114548,103390.0,103380.0,0.048411]
[1737472627931,0.00014548,103390.0,103380.0,0.048411]
[1737472628134,0.36194548,103390.0,103370.0,0.048414]
[1737472628337,0.3608,103380.0,103360.0,0.35406348]
[1737472628536,0.3608,103380.0,103370.0,0.048415]
[1737472628933,0.3608,103380.0,103360.0,0.40936448]
[1737472629127,0.3608,103370.0,103360.0,0.00014548]
[1737472629541,0.3608,103370.0,103360.0,0.04856548]
[1737472629735,0.3608,103370.0,103360.0,0.00014548]
[1737472630337,0.3608,103370.0,103360.0,0.04856548]
[1737472630635,0.3608,103370.0,103350.0,0.05330753]
[1737472630835,0.44498029,103390.0,103370.0,0.048411]
[1737472631137,0.001,103380.0,103370.0,0.409215]
[1737472631439,0.001,103380.0,103370.0,0.61754991]
[1737472631636,0.001,103380.0,103370.0,1.21534991]
[1737472631840,0.001,103380.0,103370.0,0.85454991]
[1737472632140,0.3618,103380.0,103370.0,0.646215]
[1737472632335,0.44398029,103390.0,103370.0,0.646215]
[1737472632537,0.44498029,103390.0,103380.0,0.048411]
[1737472632727,0.1,103400.0,103380.0,0.770011]
[1737472632926,0.1,103400.0,103370.0,0.80613491]
[1737472633130,0.1,103400.0,103370.0,1.21534691]
[1737472633326,0.1,103400.0,103390.0,0.25674091]
[1737472633531,0.1,103400.0,103390.0,0.20835693]
[1737472634142,0.1,103400.0,103390.0,0.56915693]
[1737472635041,0.00314548,103410.0,103400.0,0.048401]
[1737472635435,0.36394548,103410.0,103400.0,0.048401]
[1737472636135,0.36494548,103410.0,103400.0,0.048401]
[1737472636333,0.36494548,103410.0,103390.0,0.048404]
[1737472636536,0.36494548,103410.0,103380.0,0.0001715]
[1737472636537,0.409204,103400.0,103380.0,0.0001715]
[1737472636746,0.3608,103400.0,103380.0,0.20833491]
[1737472637041,0.3608,103400.0,103390.0,0.048406]
[1737472637235,0.3608,103400.0,103370.0,1.7932]
[1737472637431,0.3608,103400.0,103380.0,0.048407]
[1737472637932,0.3608,103400.0,103380.0,0.096814]
[1737472638133,0.3608,103390.0,103370.0,0.2932]
[1737472638333,0.3608,103380.0,103370.0,0.048414]
[1737472638944,0.3608,103390.0,103370.0,0.25674791]
[1737472638945,0.36094548,103390.0,103370.0,0.25674791]
[1737472639142,0.3608,103380.0,103370.0,0.048413]
[1737472639648,0.3608,103380.0,103370.0,0.003]
[1737472639836,0.3608,103380.0,103370.0,0.051413]
[1737472640041,0.36094548,103390.0,103380.0,0.048411]
[1737472641141,0.001,103380.0,103370.0,0.048413]
[1737472641441,0.3618,103380.0,103370.0,0.048413]
[1737472641847,0.001,103380.0,103370.0,0.048413]
[1737472642034,0.36194548,103390.0,103370.0,1.54427612]
[1737472642242,0.36194548,103390.0,103380.0,0.048411]
[1737472642746,0.36194548,103390.0,103370.0,1.75674991]
[1737472643042,0.36094548,103390.0,103380.0,0.048411]
[1737472643350,0.00014548,103390.0,103380.0,0.048411]
[1737472643546,0.00014548,103390.0,103380.0,0.409211]
[1737472643751,0.003,103410.0,103380.0,1.031511]
[1737472644050,0.16607333,103430.0,103420.0,0.048392]
[1737472644551,0.16607333,103430.0,103420.0,0.25672691]
[1737472644760,0.16607333,103430.0,103420.0,0.61752691]
[1737472645449,0.16707333,103430.0,103420.0,0.409192]
[1737472645651,0.16707333,103430.0,103420.0,0.36080802]
[1737472645839,0.16707333,103430.0,103420.0,0.048392]
[1737472646342,0.52787333,103430.0,103420.0,0.048392]
[1737472646551,0.93706033,103430.0,103410.0,0.04854048]
[1737472646849,0.93706033,103430.0,103400.0,0.048398]